bitfinex/quotes_SOLUSD_20251126
["timestamp","ask_amount","ask_price","bid_price","bid_amount"]
[1764118642721,3.16,139.4,139.36,25.82481056]
[1764118643027,0.65,139.39,139.36,25.82481056]
[1764118644926,0.65,139.39,139.36,25.11481056]
[1764118646659,0.65,139.39,139.36,0.69]
[1764118646826,0.65,139.39,139.34,25.11841538]
[1764118647148,0.65,139.39,139.34,25.80841538]
[1764118650751,14.99627194,139.39,139.34,25.80841538]
[1764118651156,0.67,139.38,139.34,25.80841538]
[1764118652146,3.16,139.37,139.34,25.80841538]
[1764118652640,3.83,139.37,139.34,25.80841538]
[1764118653752,0.67,139.36,139.34,7.17669011]
[1764118654741,0.67,139.36,139.29,0.69]
[1764118654946,25.11982936,139.35,139.29,7.17926627]
[1764118655446,0.67,139.34,139.29,7.17926627]
[1764118655763,3.16,139.33,139.29,7.17926627]
[1764118655936,3.16,139.33,139.29,7.86926627]
[1764118656136,0.67,139.32,139.29,7.86926627]
[1764118661862,10.33680893,139.33,139.3,0.69]
[1764118662240,10.33680893,139.33,139.29,7.17926627]
[1764118662442,0.67,139.32,139.26,16.998864]
[1764118662653,22.25040499,139.32,139.26,16.998864]
[1764118663142,0.67,139.31,139.26,16.998864]
[1764118663340,0.67,139.31,139.26,0.69]
[1764118663568,0.67,139.31,139.27,0.69]
[1764118663765,0.67,139.31,139.25,17.95319418]
[1764118663956,0.67,139.31,139.25,18.64319418]
[1764118665442,0.67,139.31,139.26,7.1807469]
[1764118665443,7.84823795,139.31,139.26,7.1807469]
[1764118665642,29.43019543,139.31,139.26,0.69]
[1764118665844,0.67,139.3,139.25,0.69]
[1764118666055,3.18,139.29,139.25,0.69]
[1764118666669,0.67,139.28,139.25,0.69]
[1764118666971,3.85,139.29,139.25,0.69]
[1764118667541,0.67,139.28,139.25,7.87120741]
[1764118668468,3.18,139.29,139.26,0.69]
[1764118668770,3.85,139.29,139.26,0.69]
[1764118669568,3.85,139.29,139.26,7.87076099]
[1764118670373,0.67,139.28,139.26,7.18076099]
[1764118670558,0.67,139.28,139.26,7.87076099]
[1764118671073,0.67,139.28,139.26,7.18076099]
[1764118671389,0.67,139.28,139.24,25.13645503]
[1764118671686,0.67,139.28,139.24,7.18184429]
[1764118671864,7.84979663,139.28,139.24,7.18184429]
[1764118672356,0.67,139.27,139.24,7.18184429]
[1764118672553,3.18,139.26,139.23,7.97221789]
[1764118672752,3.18,139.26,139.23,7.28221789]
[1764118672945,3.85,139.26,139.23,7.28221789]
[1764118673147,7.84979663,139.28,139.24,0.69]
[1764118673368,3.9,139.27,139.24,0.69]
[1764118673763,0.72,139.26,139.24,7.87162307]
[1764118674251,3.9,139.27,139.24,7.87162307]
[1764118675688,18.0575398,139.29,139.24,7.18162307]
[1764118675852,18.0575398,139.29,139.25,0.69]
[1764118675853,3.18,139.28,139.25,0.69]
[1764118676273,3.9,139.28,139.25,0.69]
[1764118677077,0.72,139.27,139.23,0.1]
[1764118677378,0.72,139.27,139.23,0.79]
[1764118678363,0.72,139.27,139.24,7.18184429]
[1764118678680,3.18,139.26,139.24,7.18184429]
[1764118679179,3.9,139.26,139.24,7.18184429]
[1764118681653,3.18,139.26,139.24,0.71]
[1764118682661,3.18,139.26,139.24,7.89175159]
[1764118683384,3.86,139.26,139.24,7.89175159]
[1764118683557,3.18,139.26,139.24,7.89175159]
[1764118683871,3.18,139.26,139.24,7.18175159]
[1764118684074,7.85980532,139.29,139.25,0.71]
[1764118684376,110.1784423,139.31,139.25,0.71]
[1764118684377,3.18,139.28,139.25,0.71]
[1764118684871,3.18,139.28,139.26,7.18081286]
[1764118685579,3.18,139.28,139.27,0.71]
[1764118686580,3.18,139.28,139.27,7.89029726]
[1764118688965,103.0,139.31,139.27,25.84104042]
[1764118689162,3.18,139.3,139.28,0.71]
[1764118691367,3.18,139.3,139.29,7.17926627]
[1764118692171,3.86,139.3,139.26,0.71]
[1764118692361,3.18,139.3,139.26,0.71]
[1764118692886,3.86,139.3,139.26,0.71]
[1764118693591,3.86,139.3,139.27,7.18012887]
[1764118694187,3.86,139.3,139.27,7.89012887]
[1764118695877,3.18,139.3,139.28,0.71]
[1764118697396,3.18,139.3,139.28,7.8894621]
[1764118698065,0.68,139.31,139.28,7.8894621]
[1764118698268,3.18,139.3,139.28,7.8894621]
[1764118702881,0.68,139.31,139.28,7.8894621]
[1764118702882,3.18,139.29,139.28,7.8894621]
[1764118705803,0.69,139.33,139.28,25.83891643]
[1764118706106,3.87,139.32,139.29,0.68]
[1764118706777,0.69,139.31,139.29,0.68]
[1764118706980,0.69,139.31,139.3,7.17875089]
[1764118707378,0.69,139.31,139.29,7.17906212]
[1764118708604,3.18,139.3,139.29,7.17906212]
[1764118711185,3.18,139.3,139.29,7.85906212]
[1764118713106,3.87,139.3,139.29,7.17906212]
[1764118714014,3.18,139.3,139.29,7.17906212]
[1764118714193,3.87,139.3,139.29,7.17906212]
[1764118714790,3.87,139.3,139.28,7.17978173]
[1764118714990,3.18,139.3,139.28,7.85978173]
[1764118715218,3.87,139.3,139.28,7.17978173]
[1764118715602,3.87,139.3,139.28,7.85978173]
[1764118715895,3.87,139.3,139.28,7.17978173]
[1764118715896,3.18,139.3,139.28,7.17978173]
[1764118716107,3.18,139.3,139.28,7.85978173]
[1764118716898,3.87,139.3,139.28,7.17978173]
[1764118717101,3.87,139.3,139.28,7.85978173]
[1764118717992,3.18,139.3,139.28,7.85978173]
[1764118718305,3.18,139.3,139.29,0.68]
[1764118718697,3.18,139.3,139.28,7.17978173]
[1764118718886,0.69,139.31,139.28,7.85978173]
[1764118719210,3.18,139.3,139.28,7.85978173]
[1764118719607,3.18,139.3,139.29,0.68]
[1764118720985,0.69,139.31,139.29,0.68]
[1764118721182,3.18,139.3,139.29,0.68]
[1764118721615,3.18,139.3,139.29,7.85926627]
[1764118722696,3.18,139.3,139.27,17.9497925]
[1764118722697,3.87,139.3,139.26,7.18081286]
[1764118722902,0.69,139.29,139.26,7.86081286]
[1764118724523,0.69,139.29,139.26,25.13284503]
[1764118724688,3.18,139.28,139.27,0.68]
[1764118724895,3.18,139.28,139.26,25.81284503]
[1764118725094,3.87,139.28,139.26,25.13284503]
[1764118725310,3.18,139.28,139.26,25.81284503]
[1764118726326,3.87,139.28,139.26,7.18081286]
[1764118727304,3.87,139.28,139.26,7.86081286]
[1764118727617,3.18,139.28,139.26,7.86081286]
[1764118730616,3.87,139.28,139.26,7.18081286]
[1764118733900,3.87,139.28,139.26,0.7]
[1764118734301,3.18,139.28,139.26,0.7]
[1764118734702,3.87,139.28,139.26,0.7]
[1764118735726,3.87,139.28,139.26,7.88033725]
[1764118736821,3.18,139.28,139.26,7.88033725]
[1764118737029,3.87,139.28,139.26,7.88033725]
[1764118737528,3.18,139.28,139.26,7.88033725]
[1764118737831,3.87,139.28,139.26,0.7]
[1764118740618,3.87,139.28,139.27,7.18029726]
[1764118740818,3.18,139.28,139.27,7.18029726]
[1764118741013,3.18,139.28,139.27,7.87029726]
[1764118741214,3.18,139.28,139.27,7.18029726]
[1764118743424,3.86,139.28,139.27,7.18029726]
[1764118743757,3.18,139.28,139.27,7.18029726]
[1764118744240,3.86,139.28,139.27,7.18029726]
[1764118745052,3.18,139.28,139.27,7.18029726]
[1764118747877,3.18,139.28,139.26,7.18060789]
[1764118748153,3.18,139.28,139.26,7.87060789]
[1764118749421,3.18,139.28,139.27,0.69]
[1764118749827,3.18,139.28,139.25,17.9526179]
[1764118750028,3.18,139.28,139.26,0.69]
[1764118750747,3.86,139.31,139.26,0.69]
[1764118751322,3.86,139.31,139.27,25.13104042]
[1764118751722,3.86,139.31,139.28,0.69]
[1764118753756,3.86,139.31,139.29,7.17926627]
[1764118755163,0.68,139.3,139.27,7.18029726]
[1764118755352,3.86,139.31,139.28,0.69]
[1764118755852,3.18,139.31,139.28,0.69]
[1764118756054,3.86,139.31,139.29,7.17926627]
[1764118756941,3.86,139.31,139.29,7.86926627]
[1764118757749,3.86,139.31,139.27,17.95074316]
[1764118757932,3.86,139.31,139.28,0.69]
[1764118758334,3.18,139.31,139.28,0.69]
[1764118759556,3.18,139.3,139.28,0.69]
[1764118759743,3.18,139.31,139.29,25.12743196]
[1764118760134,0.68,139.38,139.3,9.49994492]
[1764118760443,3.18,139.37,139.32,8.80994492]
[1764118760855,3.86,139.37,139.33,0.69]
[1764118761863,3.86,139.37,139.34,7.17669011]
[1764118762051,0.68,139.36,139.34,7.17669011]
[1764118762362,3.86,139.37,139.34,7.86669011]
[1764118763334,3.86,139.37,139.34,25.80841538]
[1764118764047,3.86,139.37,139.34,7.86669011]
[1764118766365,3.18,139.37,139.34,7.17669011]
[1764118766559,0.68,139.36,139.33,7.17709723]
[1764118767063,0.68,139.36,139.33,7.85709723]
[1764118768262,0.68,139.36,139.33,7.17709723]
[1764118768444,0.68,139.36,139.32,7.85752756]
[1764118770259,0.68,139.36,139.32,7.17752756]
[1764118771765,7.85584875,139.36,139.29,17.94763053]
[1764118771943,18.62490056,139.35,139.3,9.48994492]
[1764118772139,3.16,139.34,139.29,42.1157608]
[1764118772344,3.84,139.34,139.29,7.17926627]
[1764118772544,0.68,139.33,139.29,7.17926627]
[1764118772754,0.68,139.33,139.28,7.17958062]
[1764118772938,16.988864,139.33,139.28,7.17958062]
[1764118773473,0.68,139.32,139.29,0.68]
[1764118773654,3.16,139.31,139.28,25.80903495]
[1764118774171,3.16,139.31,139.29,0.68]
[1764118774370,3.84,139.31,139.29,0.68]
[1764118775038,3.84,139.31,139.29,7.17913252]
[1764118775769,3.84,139.31,139.29,7.85913252]
[1764118775963,16.308864,139.33,139.3,0.68]
[1764118776284,3.84,139.32,139.29,7.85913252]
[1764118776455,3.84,139.32,139.29,7.17913252]
[1764118776658,0.68,139.31,139.29,7.17913252]
[1764118777975,0.68,139.31,139.27,17.95035849]
[1764118777976,0.68,139.31,139.27,7.18020118]
[1764118778184,3.16,139.3,139.28,0.68]
[1764118778660,3.84,139.3,139.28,0.68]
[1764118779381,3.84,139.3,139.27,7.86020118]
[1764118779584,3.84,139.3,139.28,0.68]
[1764118779949,0.68,139.29,139.25,7.86132854]
[1764118780153,0.68,139.29,139.25,7.18132854]
[1764118780661,0.68,139.29,139.25,7.86132854]
[1764118781374,0.68,139.29,139.25,25.8146499]
[1764118784177,0.68,139.29,139.26,0.68]
[1764118784673,23.836904,139.3,139.26,0.68]
[1764118784864,3.84,139.3,139.26,0.68]
[1764118785461,3.84,139.3,139.27,7.18029726]
[1764118785683,3.16,139.3,139.27,7.18029726]
[1764118785885,0.68,139.29,139.27,7.18029726]
[1764118786058,0.68,139.29,139.27,7.86029726]
[1764118787196,0.68,139.29,139.27,7.18029726]
[1764118787490,0.68,139.29,139.26,7.86068831]
[1764118787872,3.84,139.3,139.27,0.68]
[1764118788889,0.68,139.3,139.27,0.68]
[1764118789584,3.16,139.29,139.27,7.85989658]
[1764118790280,3.16,139.28,139.27,7.85989658]
[1764118792087,0.68,139.3,139.27,7.85989658]
[1764118792281,3.16,139.29,139.27,7.85989658]
[1764118792463,0.68,139.3,139.27,7.85989658]
[1764118792763,3.16,139.29,139.27,7.85989658]
[1764118792988,0.68,139.3,139.27,7.85989658]
[1764118793285,3.16,139.28,139.27,7.85989658]
[1764118793488,0.68,139.3,139.27,7.85989658]
[1764118793860,3.16,139.29,139.27,7.85989658]
[1764118794065,0.68,139.3,139.27,7.85989658]
[1764118794266,3.16,139.29,139.27,7.85989658]
[1764118794477,3.16,139.28,139.27,7.86989658]
[1764118794691,3.16,139.28,139.23,7.28217014]
[1764118794906,0.65,139.27,139.23,7.97217014]
[1764118795475,16.958864,139.27,139.23,7.97217014]
[1764118795682,3.16,139.26,139.24,0.69]
[1764118796188,3.16,139.26,139.25,7.18132854]
[1764118798493,0.65,139.28,139.25,0.69]
[1764118798695,3.18,139.26,139.23,0.1]
[1764118798875,3.18,139.26,139.23,0.79]
[1764118799192,3.83,139.26,139.23,0.79]
[1764118800097,3.83,139.26,139.24,7.18184429]
[1764118800503,3.18,139.26,139.24,7.87184429]
[1764118801297,3.18,139.26,139.24,7.18184429]
[1764118801496,3.18,139.25,139.24,7.83184429]
[1764118802112,3.89,139.25,139.23,7.28214514]
[1764118802273,0.71,139.24,139.23,7.28214514]
[1764118802880,3.89,139.25,139.23,7.28214514]
[1764118803483,0.71,139.28,139.24,0.65]
[1764118803689,3.18,139.25,139.24,0.65]
[1764118804594,3.18,139.25,139.24,7.83184429]
[1764118807498,3.18,139.25,139.23,18.0559003]
[1764118807674,3.18,139.25,139.24,0.65]
[1764118808782,3.18,139.25,139.23,18.7059003]
[1764118809000,0.71,139.24,139.23,0.1]
[1764118809378,3.18,139.25,139.23,0.75]
[1764118811181,3.18,139.25,139.24,7.18184429]
[1764118811378,0.71,139.3,139.24,25.78645503]
[1764118811597,3.18,139.27,139.25,0.65]
[1764118812005,3.89,139.27,139.24,25.78645503]
[1764118812281,3.18,139.27,139.25,0.65]
[1764118813010,3.18,139.27,139.26,7.18081286]
[1764118813190,0.71,139.26,139.23,0.1]
[1764118814507,0.71,139.26,139.23,7.28228605]
[1764118818608,0.71,139.26,139.23,0.1]
[1764118819207,7.89271563,139.26,139.23,0.1]
[1764118820115,7.89271563,139.26,139.23,0.75]
[1764118820300,0.71,139.25,139.23,0.75]
[1764118820492,3.18,139.24,139.23,0.75]
[1764118821216,3.18,139.24,139.23,0.1]
[1764118821714,3.89,139.24,139.23,0.1]
[1764118821917,11.07184429,139.24,139.23,0.1]
[1764118822095,18.25455992,139.24,139.23,0.1]
[1764118822800,11.07271563,139.24,139.23,0.1]
[1764118827913,18.25455992,139.24,139.23,0.1]
[1764118829035,11.07271563,139.24,139.23,0.1]
[1764118830296,18.25455992,139.24,139.23,0.1]
[1764118832525,11.07271563,139.24,139.23,0.1]
[1764118833021,0.71,139.26,139.23,0.78]
[1764118833192,3.18,139.25,139.23,0.78]
[1764118834097,3.18,139.24,139.23,0.78]
[1764118834717,3.18,139.24,139.23,0.1]
[1764118834922,3.18,139.24,139.23,7.96236012]
[1764118835817,3.89,139.24,139.23,0.1]
[1764118836522,3.18,139.24,139.23,0.1]
[1764118837112,3.89,139.24,139.23,0.1]
[1764118837317,11.07184429,139.24,139.23,0.1]
[1764118838823,19.88178921,139.24,139.23,0.1]
[1764118839328,19.88178921,139.24,139.21,0.1]
[1764118839329,8.80994492,139.23,139.21,0.1]
[1764118839504,16.308864,139.22,139.2,0.1]
[1764118839703,3.18,139.21,139.2,0.1]
[1764118839902,3.89,139.21,139.2,0.1]
[1764118840337,3.18,139.21,139.16,6.88593917]
[1764118840509,0.71,139.2,139.13,18.06791005]
[1764118840706,119.308864,139.22,139.14,7.86682404]
[1764118840902,3.18,139.21,139.14,7.86682404]
[1764118841098,3.18,139.2,139.15,9.48994492]
[1764118841410,3.18,139.19,139.15,9.48994492]
[1764118841609,3.18,139.19,139.16,0.68]
[1764118841804,3.18,139.18,139.16,0.68]
[1764118842411,3.18,139.18,139.17,7.18545663]
[1764118842821,3.18,139.18,139.17,7.86545663]
[1764118845414,16.308864,139.23,139.17,25.82909821]
[1764118845619,3.18,139.22,139.18,0.68]
[1764118847216,3.18,139.22,139.19,7.18442416]
[1764118847823,3.89,139.22,139.18,7.18477244]
[1764118848125,0.71,139.21,139.17,7.18527302]
[1764118848532,0.71,139.21,139.16,7.18582703]
[1764118848933,0.71,139.21,139.13,7.28704012]
[1764118849117,16.308864,139.2,139.13,7.96704012]
[1764118849317,23.4930712,139.2,139.14,0.68]
[1764118850404,23.4930712,139.2,139.15,7.18648939]
[1764118850814,24.2030712,139.2,139.15,7.86648939]
[1764118851750,21.13719005,139.22,139.15,7.86648939]
[1764118851751,3.18,139.22,139.16,0.68]
[1764118851922,103.71,139.23,139.16,0.68]
[1764118851923,110.89271333,139.23,139.16,0.68]
[1764118852128,3.18,139.21,139.16,0.68]
[1764118852636,3.89,139.21,139.16,0.68]
[1764118853031,3.89,139.21,139.17,7.18545663]
[1764118853329,0.72,139.2,139.13,18.77835424]
[1764118854331,7.90404693,139.2,139.14,7.18700589]
[1764118855225,0.72,139.19,139.13,0.1]
[1764118855427,3.18,139.18,139.13,0.1]
[1764118855935,11.1883779,139.18,139.13,7.99750131]
[1764118856125,0.72,139.17,139.13,7.99750131]
[1764118856441,7.90554729,139.17,139.13,0.1]
[1764118857346,0.72,139.16,139.13,0.1]
[1764118857546,3.18,139.15,139.13,0.1]
[1764118858331,3.18,139.15,139.13,0.81]
[1764118858536,3.18,139.15,139.13,0.1]
[1764118858853,3.18,139.14,139.13,0.1]
[1764118860442,3.18,139.14,139.13,0.81]
[1764118860631,3.18,139.14,139.13,0.1]
[1764118860822,2.46153177,139.14,139.13,0.1]
[1764118864449,3.12153177,139.14,139.13,0.1]
[1764118865227,2.46153177,139.14,139.13,0.1]
[1764118867747,10.30853766,139.14,139.13,0.1]
[1764118867950,3.12153177,139.14,139.13,0.1]
[1764118868935,6.00285717,139.14,139.13,0.1]
[1764118871023,2.46153177,139.14,139.13,0.1]
[1764118871248,3.12153177,139.14,139.13,0.1]
[1764118871451,2.46153177,139.14,139.13,0.1]
[1764118871953,0.66,139.19,139.13,0.76]
[1764118872143,6.06049544,139.18,139.14,7.18700589]
[1764118872452,103.0,139.21,139.14,7.18700589]
[1764118872453,3.18,139.17,139.14,7.18700589]
[1764118872642,28.7882226,139.19,139.14,7.84700589]
[1764118872955,3.18,139.16,139.14,7.84700589]
[1764118874129,3.18,139.16,139.15,0.66]
[1764118874959,3.18,139.16,139.15,7.84648939]
[1764118875126,0.66,139.18,139.15,7.18648939]
[1764118875333,3.18,139.17,139.15,7.84648939]
[1764118878053,3.18,139.17,139.15,0.66]
[1764118878259,3.18,139.17,139.14,7.18681132]
[1764118878552,3.18,139.17,139.15,7.8464348]
[1764118878937,0.66,139.18,139.15,7.1864348]
[1764118879258,3.18,139.17,139.15,7.1864348]
[1764118879754,3.18,139.17,139.15,7.8464348]
[1764118881039,3.18,139.17,139.15,7.1864348]
[1764118881239,3.18,139.17,139.15,7.8464348]
[1764118881558,3.18,139.17,139.15,0.66]
[1764118881755,3.18,139.17,139.15,7.84642572]
[1764118882755,3.18,139.17,139.13,0.1]
[1764118882952,0.66,139.16,139.13,0.1]
[1764118883956,0.66,139.16,139.13,0.77]
[1764118884357,0.66,139.16,139.13,0.1]
[1764118885337,0.66,139.16,139.13,0.77]
[1764118885549,3.18,139.15,139.13,0.77]
[1764118886263,18.75138954,139.18,139.13,0.77]
[1764118886460,3.86,139.17,139.13,0.77]
[1764118886660,3.18,139.16,139.13,0.77]
[1764118886858,3.18,139.15,139.13,0.77]
[1764118887765,103.0,139.2,139.14,25.15452062]
[1764118887943,3.86,139.19,139.14,25.15452062]
[1764118888148,3.18,139.18,139.15,0.67]
[1764118888975,3.86,139.18,139.15,0.67]
[1764118889179,3.86,139.18,139.15,0.17]
[1764118889682,103.0,139.2,139.16,7.18597298]
[1764118889849,3.18,139.19,139.16,7.18597298]
[1764118890352,3.18,139.19,139.16,25.15090543]
[1764118891071,3.18,139.19,139.17,0.67]
[1764118891657,0.68,139.18,139.14,18.6370489]
[1764118892062,0.68,139.18,139.14,17.9670489]
[1764118892264,0.68,139.18,139.15,0.67]
[1764118892650,3.86,139.19,139.15,0.67]
[1764118893082,3.18,139.19,139.15,0.67]
[1764118893979,3.86,139.19,139.16,7.18597298]
[1764118894346,3.86,139.19,139.16,7.85597298]
[1764118895484,3.18,139.18,139.16,0.67]
[1764118896467,3.18,139.18,139.17,7.18545663]
[1764118896977,3.18,139.18,139.17,7.85545663]
[1764118899177,3.18,139.18,139.17,7.18545663]
[1764118900068,3.18,139.18,139.16,0.67]
[1764118900781,3.18,139.19,139.16,0.67]
[1764118901777,3.18,139.19,139.15,17.96541361]
[1764118901778,0.68,139.18,139.15,17.96541361]
[1764118901963,0.68,139.18,139.15,25.151903]
[1764118902165,3.18,139.19,139.16,0.67]
[1764118902365,3.86,139.19,139.16,0.67]
[1764118903574,3.18,139.19,139.16,0.67]
[1764118903775,3.18,139.19,139.17,7.18545663]
[1764118904179,3.18,139.19,139.17,7.85545663]
[1764118905358,3.18,139.19,139.18,0.67]
[1764118905699,0.68,139.18,139.14,25.1542625]
[1764118905999,0.68,139.18,139.13,7.95735751]
[1764118906380,0.68,139.18,139.14,0.67]
[1764118907861,0.68,139.18,139.15,7.18648939]
[1764118908187,3.18,139.17,139.15,7.18648939]
[1764118908372,3.18,139.17,139.15,7.85648939]
[1764118909463,3.18,139.17,139.15,25.82271288]
[1764118909665,3.18,139.17,139.16,0.67]
[1764118910587,3.18,139.17,139.15,25.82271288]
[1764118910784,3.18,139.17,139.16,0.67]
[1764118911482,3.18,139.17,139.16,7.85597298]
[1764118913583,103.71,139.21,139.16,25.82090543]
[1764118913773,3.18,139.19,139.17,0.71]
[1764118915480,0.71,139.18,139.16,17.96493245]
[1764118915686,0.71,139.18,139.15,7.18648939]
[1764118917493,3.18,139.17,139.15,7.18648939]
[1764118918586,3.89,139.17,139.15,7.18648939]
[1764118920497,3.18,139.17,139.15,7.89648939]
[1764118922199,3.18,139.17,139.15,7.18648939]
[1764118922603,0.67,139.16,139.15,7.18648939]
[1764118922796,0.67,139.16,139.13,7.28740841]
[1764118923407,3.85,139.17,139.13,25.96621456]
[1764118923595,0.67,139.16,139.13,25.96621456]
[1764118923983,3.18,139.17,139.14,0.71]
[1764118924188,0.67,139.18,139.15,7.18648939]
[1764118924506,3.18,139.17,139.15,25.15271288]
[1764118924690,3.18,139.16,139.15,25.86271288]
[1764118925703,3.18,139.19,139.15,25.86271288]
[1764118925903,3.18,139.19,139.16,0.71]
[1764118926206,0.67,139.2,139.17,7.18545663]
[1764118926415,3.18,139.19,139.17,25.14909821]
[1764118926787,3.18,139.19,139.18,0.71]
[1764118928291,3.18,139.19,139.18,7.89494036]
[1764118930391,3.18,139.19,139.18,7.18494036]
[1764118933506,3.18,139.19,139.16,8.80994492]
[1764118933804,3.18,139.19,139.18,0.71]
[1764118934395,3.18,139.19,139.17,0.71]
[1764118934584,3.18,139.19,139.18,7.18494036]
[1764118935911,3.18,139.19,139.18,7.89494036]
[1764118937586,0.67,139.21,139.18,25.85729127]
[1764118937810,3.18,139.2,139.18,25.85729127]
[1764118939007,3.18,139.2,139.19,0.71]
[1764118939399,3.18,139.2,139.18,25.14729127]
[1764118939704,3.18,139.2,139.18,25.85729127]
[1764118940321,3.18,139.2,139.18,25.14729127]
[1764118940614,0.67,139.19,139.18,7.18494036]
[1764118940817,3.85,139.2,139.18,7.18494036]
[1764118942414,3.18,139.2,139.18,7.18494036]
[1764118942714,3.18,139.2,139.18,7.89494036]
[1764118943220,3.18,139.2,139.15,61.08515987]
[1764118943519,3.84,139.2,139.16,0.71]
[1764118943909,0.66,139.19,139.16,0.71]
[1764118944607,3.18,139.2,139.16,0.71]
[1764118944920,3.84,139.2,139.16,0.71]
[1764118945507,3.84,139.2,139.17,7.18545663]
[1764118945712,0.66,139.19,139.17,7.18545663]
[1764118946812,0.66,139.2,139.17,25.85909821]
[1764118947012,3.18,139.19,139.17,25.85909821]
[1764118947530,3.18,139.19,139.18,0.71]
[1764118948202,3.18,139.19,139.18,7.89494036]
[1764118951999,3.18,139.21,139.18,25.85729127]
[1764118952200,3.18,139.21,139.19,0.71]
[1764118952614,0.66,139.22,139.19,0.71]
[1764118952931,3.84,139.22,139.19,0.71]
[1764118954218,3.84,139.22,139.2,7.18390804]
[1764118958599,3.18,139.22,139.2,7.18390804]
[1764118958799,3.84,139.22,139.2,7.18390804]
[1764118959735,3.18,139.22,139.18,8.80994492]
[1764118960022,3.18,139.22,139.21,17.018864]
[1764118960702,0.66,139.25,139.21,25.82880892]
[1764118961022,0.66,139.25,139.22,0.71]
[1764118961909,0.66,139.25,139.23,7.18236012]
[1764118964129,0.66,139.25,139.22,25.13889608]
[1764118964508,0.66,139.25,139.22,25.84889608]
[1764118968333,0.66,139.25,139.22,25.13889608]
[1764118968517,0.66,139.25,139.22,25.84889608]
[1764118969346,3.18,139.26,139.22,25.13889608]
[1764118969520,3.18,139.26,139.23,0.71]
[1764118969720,0.66,139.25,139.22,25.84889608]
[1764118974940,0.66,139.25,139.22,25.13889608]
[1764118976325,0.66,139.25,139.22,25.79889608]
[1764118979949,0.66,139.25,139.22,25.13889608]
[1764118980355,7.02,139.25,139.22,25.13889608]
[1764118980651,7.02,139.25,139.15,9.07864892]
[1764118980652,7.02,139.25,139.16,17.96424033]
[1764118980857,119.968864,139.24,139.16,17.96424033]
[1764118981222,0.66,139.23,139.16,18.64424033]
[1764118981426,3.18,139.22,139.18,8.80994492]
[1764118981947,3.18,139.22,139.2,7.18390804]
[1764118982254,3.84,139.22,139.2,7.18390804]
[1764118983458,0.66,139.21,139.2,7.18390804]
[1764118983967,0.66,139.21,139.19,17.95987403]
[1764118984153,0.66,139.21,139.18,7.18494036]
[1764118984459,0.66,139.21,139.18,7.86494036]
[1764118985142,16.968864,139.21,139.18,7.86494036]
[1764118985332,0.66,139.21,139.18,25.82729127]
[1764118986641,0.66,139.21,139.18,25.14729127]
[1764118986840,0.66,139.21,139.18,25.82729127]
[1764118989766,0.66,139.21,139.18,25.14729127]
[1764118989947,0.66,139.21,139.18,25.82729127]
[1764118990876,20.148864,139.22,139.19,0.68]
[1764118991070,3.84,139.22,139.19,0.68]